fUST/lending_fUST_20240520
["ID","MTS","AMOUNT","RATE_DAILY","PERIOD"]
[327522891,1716154119470,-500.0,0.00044931,34]
[327522892,1716154119495,-500.0,0.00044931,34]
[327522893,1716154119520,-286.28798469,0.00044931,34]
[327522894,1716154119545,-500.0,0.00044931,34]
[327522895,1716154119571,-925.94,0.00044931,34]
[327522896,1716154119596,-500.0,0.00044931,34]
[327522897,1716154119621,-500.0,0.00044931,34]
[327522898,1716154119646,-500.0,0.00044931,34]
[327522899,1716154119671,-500.0,0.00044931,34]
[327522900,1716154119700,-1631.99,0.00044931,34]
[327522901,1716154119727,-500.0,0.00044931,34]
[327522902,1716154119752,-500.0,0.00044931,34]
[327522903,1716154119776,-5763.66,0.00044931,34]
[327522904,1716154119801,-500.0,0.00044931,34]
[327522905,1716154119826,-501.97,0.00044931,34]
[327522906,1716154119854,-2028.34,0.00044931,34]
[327522907,1716154119880,-10396.27,0.00044931,34]
[327522908,1716154119905,-500.0,0.00044931,34]
[327522909,1716154119930,-904.37,0.00044931,34]
[327522910,1716154119955,-739.09,0.00044931,34]
[327522911,1716154119981,-524.68,0.00044931,34]
[327522912,1716154120007,-500.0,0.00044931,34]
[327522913,1716154120033,-500.0,0.00044931,34]
[327522914,1716154120060,-954.34,0.00044931,34]
[327522915,1716154120084,-500.0,0.00044931,34]
[327522916,1716154120110,-500.0,0.00044931,34]
[327522917,1716154120135,-500.0,0.00044931,34]
[327522918,1716154120160,-1612.29,0.00044931,34]
[327522919,1716154120185,-500.0,0.00044931,34]
[327522920,1716154120210,-689.88,0.00044931,34]
[327522921,1716154120235,-500.0,0.00044931,34]
[327522922,1716154120261,-500.0,0.00044931,34]
[327522923,1716154120286,-890.96,0.00044931,34]
[327522924,1716154120313,-500.0,0.00044931,34]
[327522925,1716154120340,-1024.74,0.00044931,34]
[327522926,1716154120365,-500.0,0.00044931,34]
[327522927,1716154120482,-500.0,0.00044931,34]
[327522928,1716154120512,-500.0,0.00044931,34]
[327522929,1716154120540,-7230.68,0.00044931,34]
[327522930,1716154120568,-500.0,0.00044931,34]
[327522931,1716154120595,-455.80376935,0.00044931,30]
[327522932,1716154120622,-500.0,0.00044931,34]
[327522933,1716154120648,-500.0,0.00044931,34]
[327522934,1716154120673,-500.0,0.00044931,34]
[327522935,1716154120703,-500.0,0.00044931,34]
[327522936,1716154120729,-500.0,0.00044931,34]
[327522937,1716154120757,-2105.86,0.00044931,34]
[327522938,1716154120782,-500.0,0.00044931,34]
[327522939,1716154120808,-754.27,0.00044931,21]
[327522940,1716154120832,-17407.48860722,0.00045,120]
[327522941,1716154120857,-1000.0,0.00045,45]
[327522942,1716154120880,-151.0,0.00045,120]
[327522943,1716154120904,-500.0,0.00045205,35]
[327522944,1716154120928,-500.0,0.00045205,35]
[327522945,1716154120951,-500.0,0.00045205,20]
[327522946,1716154120976,-579.51206347,0.00045205,35]
[327522947,1716154120999,-500.0,0.00045205,35]
[327522948,1716154121023,-166.50788339,0.00045205,35]
[327522949,1716154121047,-500.0,0.00045205,35]
[327522950,1716154121071,-253.08,0.00045205,35]
[327522951,1716154121099,-448.3316424,0.00045205,35]
[327522952,1716154121125,-500.0,0.00045205,35]
[327522953,1716154121149,-500.0,0.00045205,35]
[327522954,1716154121172,-537.25,0.00045205,35]
[327522955,1716154121199,-500.0,0.00045205,35]
[327522956,1716154121225,-500.0,0.00045205,35]
[327522957,1716154121252,-224.1,0.00045205,35]
[327522958,1716154121277,-500.0,0.00045205,35]
[327522959,1716154121303,-500.0,0.00045205,35]
[327522960,1716154121330,-500.0,0.00045205,35]
[327522961,1716154121355,-500.0,0.00045205,35]
[327522962,1716154121380,-500.0,0.00045205,35]
[327522963,1716154121406,-500.0,0.00045205,30]
[327522964,1716154121429,-500.0,0.00045205,35]
[327522965,1716154121453,-500.0,0.00045205,35]
[327522966,1716154121478,-500.0,0.00045205,35]
[327522967,1716154121502,-925.94,0.00045205,35]
[327522968,1716154121527,-500.0,0.00045205,35]
[327522969,1716154121552,-533.44,0.00045205,35]
[327522970,1716154121577,-500.0,0.00045205,35]
[327522971,1716154121602,-500.0,0.00045205,35]
[327522972,1716154121626,-1631.99,0.00045205,35]
[327522973,1716154121651,-500.0,0.00045205,35]
[327522974,1716154121678,-500.0,0.00045205,35]
[327522975,1716154121704,-5763.66,0.00045205,35]
[327522976,1716154121729,-500.0,0.00045205,35]
[327522977,1716154121754,-501.97,0.00045205,35]
[327522978,1716154121780,-2028.34,0.00045205,35]
[327522979,1716154121807,-10396.27,0.00045205,35]
[327522980,1716154121832,-500.0,0.00045205,35]
[327522981,1716154121858,-904.37,0.00045205,35]
[327522982,1716154121884,-739.09,0.00045205,35]
[327522983,1716154121911,-524.68,0.00045205,35]
[327522984,1716154121936,-500.0,0.00045205,35]
[327522985,1716154121961,-500.0,0.00045205,35]
[327522986,1716154121987,-954.34,0.00045205,35]
[327522987,1716154122012,-500.0,0.00045205,35]
[327522988,1716154122037,-500.0,0.00045205,35]
[327522989,1716154122062,-500.0,0.00045205,35]
[327522990,1716154122087,-1612.29,0.00045205,35]
[327522991,1716154122111,-500.0,0.00045205,35]
[327522992,1716154122135,-689.88,0.00045205,35]
[327522993,1716154122160,-500.0,0.00045205,35]
[327522994,1716154122184,-500.0,0.00045205,35]
[327522995,1716154122208,-890.96,0.00045205,35]
[327522996,1716154122326,-500.0,0.00045205,35]
[327522997,1716154122352,-500.0,0.00045205,35]
[327522998,1716154122378,-1024.74,0.00045205,35]
[327522999,1716154122404,-500.0,0.00045205,35]
[327523000,1716154122429,-500.0,0.00045205,35]
[327523001,1716154122454,-7230.68,0.00045205,35]
[327523002,1716154122479,-500.0,0.00045205,35]
[327523003,1716154122503,-500.0,0.00045205,35]
[327523004,1716154122528,-500.0,0.00045205,35]
[327523005,1716154122552,-500.0,0.00045205,35]
[327523006,1716154122578,-500.0,0.00045205,35]
[327523007,1716154122602,-500.0,0.00045205,35]
[327523008,1716154122627,-2105.86,0.00045205,35]
[327523009,1716154122652,-500.0,0.00045205,35]
[327523010,1716154122679,-754.27,0.00045205,21]
[327523011,1716154122706,-500.0,0.00045479,36]
[327523012,1716154122731,-500.0,0.00045479,36]
[327523013,1716154122755,-500.0,0.00045479,20]
[327523014,1716154122780,-500.0,0.00045479,36]
[327523015,1716154122804,-500.0,0.00045479,36]
[327523016,1716154122828,-500.0,0.00045479,36]
[327523017,1716154122853,-500.0,0.00045479,36]
[327523018,1716154122878,-537.25,0.00045479,36]
[327523019,1716154122901,-500.0,0.00045479,36]
[327523020,1716154122925,-500.0,0.00045479,36]
[327523021,1716154122947,-500.0,0.00045479,36]
[327523022,1716154122972,-500.0,0.00045479,36]
[327523023,1716154122995,-500.0,0.00045479,36]
[327523024,1716154123018,-500.0,0.00045479,36]
[327523025,1716154123041,-500.0,0.00045479,36]
[327523026,1716154123065,-500.0,0.00045479,30]
[327523027,1716154123089,-500.0,0.00045479,36]
[327523028,1716154123114,-500.0,0.00045479,36]
[327523029,1716154123138,-500.0,0.00045479,36]
[327523030,1716154123162,-925.94,0.00045479,36]
[327523031,1716154123185,-500.0,0.00045479,36]
[327523032,1716154123209,-500.0,0.00045479,36]
[327523033,1716154123233,-500.0,0.00045479,36]
[327523034,1716154123257,-1631.99,0.00045479,36]
[327523035,1716154123280,-500.0,0.00045479,36]
[327523036,1716154123304,-500.0,0.00045479,36]
[327523037,1716154123327,-5763.66,0.00045479,36]
[327523038,1716154123351,-500.0,0.00045479,36]
[327523039,1716154123374,-501.97,0.00045479,36]
[327523040,1716154123400,-2028.34,0.00045479,36]
[327523041,1716154123425,-10396.27,0.00045479,36]
[327523042,1716154123449,-500.0,0.00045479,36]
[327523043,1716154123472,-904.37,0.00045479,36]
[327523044,1716154123497,-739.09,0.00045479,36]
[327523045,1716154123520,-524.68,0.00045479,36]
[327523046,1716154123544,-500.0,0.00045479,36]
[327523047,1716154123570,-500.0,0.00045479,36]
[327523048,1716154123596,-954.34,0.00045479,36]
[327523049,1716154123621,-500.0,0.00045479,36]
[327523050,1716154123646,-500.0,0.00045479,36]
[327523051,1716154123671,-500.0,0.00045479,36]
[327523052,1716154123699,-1612.29,0.00045479,36]
[327523053,1716154123725,-500.0,0.00045479,36]
[327523054,1716154123749,-689.88,0.00045479,36]
[327523055,1716154123776,-500.0,0.00045479,36]
[327523056,1716154123802,-500.0,0.00045479,36]
[327523057,1716154123826,-890.96,0.00045479,36]
[327523058,1716154123852,-500.0,0.00045479,36]
[327523059,1716154123875,-500.0,0.00045479,36]
[327523060,1716154123902,-1024.74,0.00045479,36]
[327523061,1716154123929,-552.51,0.00045479,36]
[327523062,1716154124040,-500.0,0.00045479,36]
[327523063,1716154124067,-7230.68,0.00045479,36]
[327523064,1716154124094,-500.0,0.00045479,36]
[327523065,1716154124120,-500.0,0.00045479,36]
[327523066,1716154124145,-500.0,0.00045479,36]
[327523067,1716154124168,-500.0,0.00045479,36]
[327523068,1716154124194,-500.0,0.00045479,36]
[327523069,1716154124219,-500.0,0.00045479,36]
[327523070,1716154124247,-2105.86,0.00045479,36]
[327523071,1716154124273,-500.0,0.00045479,36]
[327523072,1716154124299,-754.27,0.00045479,21]
[327523073,1716154124324,-10000.0,0.00045666,120]
[327523074,1716154124349,-500.0,0.00045753,37]
[327523075,1716154124374,-570.34151742,0.00045753,37]
[327523076,1716154124398,-500.0,0.00045753,20]
[327523077,1716154124423,-414.96,0.00045753,37]
[327523078,1716154124447,-500.0,0.00045753,37]
[327523079,1716154124473,-500.0,0.00045753,37]
[327523080,1716154124498,-538.26,0.00045753,37]
[327523081,1716154124522,-537.25,0.00045753,37]
[327523082,1716154124547,-500.0,0.00045753,37]
[327523083,1716154124570,-500.0,0.00045753,37]
[327523084,1716154124594,-500.0,0.00045753,37]
[327523085,1716154124620,-438.48,0.00045753,37]
[327523086,1716154124644,-500.0,0.00045753,37]
[327523087,1716154124670,-500.0,0.00045753,37]
[327523088,1716154124700,-500.0,0.00045753,37]
[327523089,1716154124725,-500.0,0.00045753,30]
[327523090,1716154124750,-500.0,0.00045753,37]
[327523091,1716154124777,-500.0,0.00045753,37]
[327523092,1716154124802,-500.0,0.00045753,37]
[327523093,1716154124827,-925.94,0.00045753,37]
[327523094,1716154124852,-238.0,0.00045753,37]
[327523095,1716154124878,-500.0,0.00045753,37]
[327523096,1716154124903,-500.0,0.00045753,37]
[327523097,1716154124925,-1631.99,0.00045753,37]
[327523098,1716154124950,-500.0,0.00045753,37]
[327523099,1716154124974,-500.0,0.00045753,37]
[327523100,1716154125000,-5763.66,0.00045753,37]
[327523101,1716154125027,-441.9,0.00045753,37]
[327523102,1716154125051,-501.97,0.00045753,37]
[327523103,1716154125077,-2028.34,0.00045753,37]
[327523104,1716154125102,-10396.27,0.00045753,37]
[327523105,1716154125126,-500.0,0.00045753,37]
[327523106,1716154125154,-904.37,0.00045753,37]
[327523107,1716154125179,-739.09,0.00045753,37]
[327523108,1716154125204,-524.68,0.00045753,37]
[327523109,1716154125230,-500.0,0.00045753,37]
[327523110,1716154125255,-500.0,0.00045753,37]
[327523111,1716154125283,-954.34,0.00045753,37]
[327523112,1716154125308,-546.64,0.00045753,37]
[327523113,1716154125332,-500.0,0.00045753,37]
[327523114,1716154125357,-500.0,0.00045753,37]
[327523115,1716154125382,-1612.29,0.00045753,37]
[327523116,1716154125406,-572.45622775,0.00045753,37]
[327523117,1716154125431,-689.88,0.00045753,37]
[327523118,1716154125454,-500.0,0.00045753,37]
[327523119,1716154125478,-601.65,0.00045753,37]
[327523120,1716154125502,-890.96,0.00045753,37]
[327523121,1716154125527,-500.0,0.00045753,37]
[327523122,1716154125551,-500.0,0.00045753,37]
[327523123,1716154125577,-1024.74,0.00045753,37]
[327523124,1716154125601,-500.0,0.00045753,37]
[327523125,1716154125628,-7230.68,0.00045753,37]
[327523126,1716154125729,-500.0,0.00045753,37]
[327523127,1716154125755,-500.0,0.00045753,37]
[327523128,1716154125782,-500.0,0.00045753,37]
[327523129,1716154125806,-500.0,0.00045753,37]
[327523130,1716154125830,-500.0,0.00045753,37]
[327523131,1716154125855,-500.0,0.00045753,37]
[327523132,1716154125879,-2105.86,0.00045753,37]
[327523133,1716154125904,-500.0,0.00045753,37]
[327523134,1716154125930,-754.27,0.00045753,21]
[327523135,1716154125954,-638.7,0.00046027,38]
[327523136,1716154125978,-500.0,0.00046027,20]
[327523137,1716154126001,-500.0,0.00046027,38]
[327523138,1716154126026,-610.46,0.00046027,38]
[327523139,1716154126049,-537.25,0.00046027,38]
[327523140,1716154126075,-500.0,0.00046027,38]
[327523141,1716154126097,-500.0,0.00046027,38]
[327523142,1716154126120,-500.0,0.00046027,38]
[327523143,1716154126143,-500.0,0.00046027,38]
[327523144,1716154126167,-500.0,0.00046027,38]
[327523145,1716154126191,-500.0,0.00046027,38]
[327523146,1716154126216,-371.65452441,0.00046027,30]
[327523147,1716154126239,-500.0,0.00046027,38]
[327523148,1716154126262,-500.0,0.00046027,38]
[327523149,1716154126286,-500.0,0.00046027,38]
[327523150,1716154126310,-925.94,0.00046027,38]
[327523151,1716154126334,-500.0,0.00046027,38]
[327523152,1716154126360,-500.0,0.00046027,38]
[327523153,1716154126383,-1631.99,0.00046027,38]
[327523154,1716154126408,-500.0,0.00046027,38]
[327523155,1716154126430,-289.12442258,0.00046027,38]
[327523156,1716154126457,-5763.66,0.00046027,38]
[327523157,1716154126482,-501.97,0.00046027,38]
[327523158,1716154126508,-2028.34,0.00046027,38]
[327523159,1716154126533,-10396.27,0.00046027,38]
[327523160,1716154126559,-500.0,0.00046027,38]
[327523161,1716154126583,-904.37,0.00046027,38]
[327523162,1716154126608,-739.09,0.00046027,38]
[327523163,1716154126632,-524.68,0.00046027,38]
[327523164,1716154126656,-500.0,0.00046027,38]
[327523165,1716154126683,-165.34476095,0.00046027,38]
[327523166,1716154126709,-954.34,0.00046027,38]
[327523167,1716154126735,-328.01,0.00046027,38]
[327523168,1716154126762,-500.0,0.00046027,38]
[327523169,1716154126787,-1612.29,0.00046027,38]
[327523170,1716154126812,-689.88,0.00046027,38]
[327523171,1716154126837,-500.0,0.00046027,38]
[327523172,1716154126862,-890.96,0.00046027,38]
[327523173,1716154126888,-500.0,0.00046027,38]
[327523174,1716154126915,-500.0,0.00046027,38]
[327523175,1716154126941,-1024.74,0.00046027,38]
[327523176,1716154126966,-500.0,0.00046027,38]
[327523177,1716154126993,-7230.68,0.00046027,38]
[327523178,1716154127017,-500.0,0.00046027,38]
[327523179,1716154127043,-500.0,0.00046027,38]
[327523180,1716154127067,-500.0,0.00046027,38]
[327523181,1716154127093,-500.0,0.00046027,38]
[327523182,1716154127117,-500.0,0.00046027,38]
[327523183,1716154127140,-500.0,0.00046027,38]
[327523184,1716154127166,-2105.86,0.00046027,38]
[327523186,1716154127189,-356.27,0.00046027,38]
[327523187,1716154127215,-754.27,0.00046027,21]
[327523188,1716154127238,-1573.86890163,0.0004608,15]
[327523189,1716154127334,-151.0,0.00046082,120]
[327523190,1716154127360,-500.0,0.00046301,20]
[327523191,1716154127383,-411.64,0.00046301,39]
[327523192,1716154127409,-537.25,0.00046301,39]
[327523193,1716154127434,-500.0,0.00046301,39]
[327523194,1716154127459,-500.0,0.00046301,39]
[327523195,1716154127485,-500.0,0.00046301,39]
[327523196,1716154127511,-500.0,0.00046301,39]
[327523197,1716154127538,-500.0,0.00046301,39]
[327523198,1716154127564,-500.0,0.00046301,39]
[327523199,1716154127587,-500.0,0.00046301,39]
[327523200,1716154127612,-500.0,0.00046301,39]
[327523201,1716154127636,-249.9,0.00046301,39]
[327523202,1716154127661,-925.94,0.00046301,39]
[327523203,1716154127688,-500.0,0.00046301,39]
[327523204,1716154127712,-246.6,0.00046301,39]
[327523205,1716154127735,-1631.99,0.00046301,39]
[327523206,1716154127759,-500.0,0.00046301,39]
[327523207,1716154127782,-5763.66,0.00046301,39]
[327523208,1716154127805,-501.97,0.00046301,39]
[327523209,1716154127831,-2028.34,0.00046301,39]
[327523210,1716154127857,-10396.27,0.00046301,39]
[327523211,1716154127881,-500.0,0.00046301,39]
[327523212,1716154127908,-904.37,0.00046301,39]
[327523213,1716154127933,-739.09,0.00046301,39]
[327523214,1716154127957,-524.68,0.00046301,39]
[327523215,1716154127982,-500.0,0.00046301,39]
[327523216,1716154128008,-954.34,0.00046301,39]
[327523217,1716154128033,-500.0,0.00046301,39]
[327523218,1716154128057,-1612.29,0.00046301,39]
[327523219,1716154128082,-689.88,0.00046301,39]
[327523220,1716154128106,-500.0,0.00046301,39]
[327523221,1716154128131,-890.96,0.00046301,39]
[327523222,1716154128155,-500.0,0.00046301,39]
[327523223,1716154128179,-353.22736552,0.00046301,39]
[327523224,1716154128203,-1024.74,0.00046301,39]
[327523225,1716154128226,-500.0,0.00046301,39]
[327523226,1716154128251,-7230.68,0.00046301,39]
[327523227,1716154128276,-500.0,0.00046301,39]
[327523228,1716154128301,-500.0,0.00046301,39]
[327523229,1716154128326,-500.0,0.00046301,39]
[327523230,1716154128349,-500.0,0.00046301,39]
[327523231,1716154128372,-500.0,0.00046301,39]
[327523232,1716154128399,-500.0,0.00046301,39]
[327523233,1716154128425,-2105.86,0.00046301,39]
[327523234,1716154128450,-754.27,0.00046301,21]
[327523235,1716154128474,-500.0,0.00046575,20]
[327523236,1716154128498,-537.25,0.00046575,40]
[327523237,1716154128522,-288.12,0.00046575,40]
[327523238,1716154128547,-500.0,0.00046575,40]
[327523239,1716154128571,-500.0,0.00046575,40]
[327523240,1716154128595,-500.0,0.00046575,40]
[327523241,1716154128619,-500.0,0.00046575,40]
[327523242,1716154128644,-500.0,0.00046575,40]
[327523243,1716154128672,-500.0,0.00046575,40]
[327523244,1716154128702,-500.0,0.00046575,40]
[327523245,1716154128726,-925.94,0.00046575,40]
[327523246,1716154128752,-540.74165161,0.00046575,40]
[327523247,1716154128779,-1631.99,0.00046575,40]
[327523248,1716154128803,-500.0,0.00046575,40]
[327523249,1716154128901,-5763.66,0.00046575,40]
[327523250,1716154128925,-501.97,0.00046575,40]
[327523251,1716154128950,-2028.34,0.00046575,40]
[327523252,1716154128975,-10396.27,0.00046575,40]
[327523253,1716154128999,-500.0,0.00046575,40]
[327523254,1716154129023,-904.37,0.00046575,40]
[327523255,1716154129051,-739.09,0.00046575,40]
[327523256,1716154129077,-524.68,0.00046575,40]
[327523257,1716154129104,-500.0,0.00046575,40]
[327523258,1716154129133,-954.34,0.00046575,40]
[327523259,1716154129160,-500.0,0.00046575,40]
[327523260,1716154129186,-1612.29,0.00046575,40]
[327523261,1716154129213,-689.88,0.00046575,40]
[327523262,1716154129239,-500.0,0.00046575,40]
[327523263,1716154129264,-890.96,0.00046575,40]
[327523264,1716154129291,-500.0,0.00046575,40]
[327523265,1716154129318,-1024.74,0.00046575,40]
[327523266,1716154129344,-500.0,0.00046575,40]
[327523267,1716154129370,-7230.68,0.00046575,40]
[327523268,1716154129398,-500.0,0.00046575,40]
[327523269,1716154129425,-500.0,0.00046575,40]
[327523270,1716154129449,-500.0,0.00046575,40]
[327523271,1716154129474,-500.0,0.00046575,40]
[327523272,1716154129498,-500.0,0.00046575,40]
[327523273,1716154129526,-500.0,0.00046575,40]
[327523274,1716154129552,-2105.86,0.00046575,40]
[327523275,1716154129577,-754.27,0.00046575,21]
[327523276,1716154129603,-10000.0,0.00046666,120]
[327523277,1716154129628,-612.70865223,0.000467,30]
[327523278,1716154129651,-1000.0,0.000468,90]
[327523279,1716154129675,-500.0,0.00046849,20]
[327523280,1716154129704,-537.25,0.00046849,41]
[327523281,1716154129730,-500.0,0.00046849,41]
[327523282,1716154129754,-500.0,0.00046849,41]
[327523283,1716154129781,-500.0,0.00046849,41]
[327523284,1716154129806,-500.0,0.00046849,41]
[327523285,1716154129831,-500.0,0.00046849,41]
[327523286,1716154129854,-500.0,0.00046849,41]
[327523287,1716154129878,-500.0,0.00046849,41]
[327523288,1716154129902,-925.94,0.00046849,41]
[327523289,1716154129925,-1631.99,0.00046849,41]
[327523290,1716154129950,-500.0,0.00046849,41]
[327523291,1716154129974,-5763.66,0.00046849,41]
[327523292,1716154129997,-501.97,0.00046849,41]
[327523293,1716154130025,-2028.34,0.00046849,41]
[327523294,1716154130051,-10396.27,0.00046849,41]
[327523295,1716154130075,-280.38,0.00046849,41]
[327523296,1716154130101,-904.37,0.00046849,41]
[327523297,1716154130126,-739.09,0.00046849,41]
[327523298,1716154130151,-524.68,0.00046849,41]
[327523299,1716154130177,-500.0,0.00046849,41]
[327523300,1716154130207,-954.34,0.00046849,41]
[327523301,1716154130234,-500.0,0.00046849,41]
[327523302,1716154130259,-1612.29,0.00046849,41]
[327523303,1716154130286,-689.88,0.00046849,41]
[327523304,1716154130311,-500.0,0.00046849,41]
[327523305,1716154130337,-890.96,0.00046849,41]
[327523306,1716154130435,-500.0,0.00046849,41]
[327523307,1716154130462,-1024.74,0.00046849,41]
[327523308,1716154130486,-500.0,0.00046849,41]
[327523309,1716154130512,-7230.68,0.00046849,41]
[327523310,1716154130537,-500.0,0.00046849,41]
[327523311,1716154130564,-500.0,0.00046849,41]
[327523312,1716154130588,-500.0,0.00046849,41]
[327523313,1716154130613,-500.0,0.00046849,41]
[327523314,1716154130639,-537.57422904,0.00046849,41]
[327523315,1716154130666,-500.0,0.00046849,41]
[327523316,1716154130694,-2105.86,0.00046849,41]
[327523317,1716154130719,-754.27,0.00046849,21]
[327523318,1716154130747,-1000.0,0.00047,47]
[327523319,1716154130774,-437.0,0.00047121,90]
[327523320,1716154130798,-500.0,0.00047123,20]
[327523321,1716154130822,-537.25,0.00047123,42]
[327523322,1716154130846,-500.0,0.00047123,42]
[327523323,1716154130870,-500.0,0.00047123,42]
[327523324,1716154130894,-500.0,0.00047123,42]
[327523325,1716154130919,-500.0,0.00047123,42]
[327523326,1716154130943,-500.0,0.00047123,42]
[327523327,1716154130967,-500.0,0.00047123,42]
[327523328,1716154130991,-500.0,0.00047123,42]
[327523329,1716154131016,-925.94,0.00047123,42]
[327523330,1716154131040,-1631.99,0.00047123,42]
[327523331,1716154131063,-500.0,0.00047123,42]
[327523332,1716154131087,-5763.66,0.00047123,42]
[327523333,1716154131111,-501.97,0.00047123,42]
[327523334,1716154131138,-2028.34,0.00047123,42]
[327523335,1716154131162,-10396.27,0.00047123,42]
[327523336,1716154131185,-904.37,0.00047123,42]
[327523337,1716154131210,-739.09,0.00047123,42]
[327523338,1716154131235,-524.68,0.00047123,42]
[327523339,1716154131260,-500.0,0.00047123,42]
[327523340,1716154131283,-954.34,0.00047123,42]
[327523341,1716154131307,-500.0,0.00047123,42]
[327523342,1716154131332,-1612.29,0.00047123,42]
[327523343,1716154131358,-689.88,0.00047123,42]
[327523344,1716154131382,-500.0,0.00047123,42]
[327523345,1716154131408,-890.96,0.00047123,42]
[327523346,1716154131433,-500.0,0.00047123,42]
[327523347,1716154131459,-1024.74,0.00047123,42]
[327523348,1716154131483,-500.0,0.00047123,42]
[327523349,1716154131507,-7230.68,0.00047123,42]
[327523350,1716154131532,-500.0,0.00047123,42]
[327523351,1716154131557,-500.0,0.00047123,42]
[327523352,1716154131583,-500.0,0.00047123,42]
[327523353,1716154131613,-500.0,0.00047123,42]
[327523354,1716154131638,-500.0,0.00047123,42]
[327523355,1716154131664,-2105.86,0.00047123,42]
[327523356,1716154131692,-754.27,0.00047123,21]
[327523357,1716154131720,-151.0,0.00047178,120]
[327523358,1716154131755,-500.0,0.00047397,20]
[327523359,1716154131782,-537.25,0.00047397,43]
[327523360,1716154131807,-500.0,0.00047397,43]
[327523361,1716154131832,-500.0,0.00047397,43]
[327523362,1716154131930,-500.0,0.00047397,43]
[327523363,1716154131956,-500.0,0.00047397,43]
[327523364,1716154131981,-500.0,0.00047397,43]
[327523365,1716154132006,-500.0,0.00047397,43]
[327523366,1716154132032,-500.0,0.00047397,43]
[327523367,1716154132057,-925.94,0.00047397,43]
[327523368,1716154132082,-1631.99,0.00047397,43]
[327523369,1716154132107,-500.0,0.00047397,43]
[327523370,1716154132133,-5763.66,0.00047397,43]
[327523371,1716154132158,-501.97,0.00047397,43]
[327523372,1716154132185,-2028.34,0.00047397,43]
[327523373,1716154132212,-10396.27,0.00047397,43]
[327523374,1716154132236,-904.37,0.00047397,43]
[327523375,1716154132262,-739.09,0.00047397,43]
[327523376,1716154132288,-524.68,0.00047397,43]
[327523377,1716154132314,-500.0,0.00047397,43]
[327523378,1716154132342,-954.34,0.00047397,43]
[327523379,1716154132367,-383.90090414,0.00047397,43]
[327523380,1716154132393,-1612.29,0.00047397,43]
[327523381,1716154132420,-689.88,0.00047397,43]
[327523382,1716154132447,-500.0,0.00047397,43]
[327523383,1716154132472,-890.96,0.00047397,43]
[327523384,1716154132499,-500.0,0.00047397,43]
[327523385,1716154132527,-1024.74,0.00047397,43]
[327523386,1716154132553,-500.0,0.00047397,43]
[327523387,1716154132580,-7230.68,0.00047397,43]
[327523388,1716154132606,-500.0,0.00047397,43]
[327523389,1716154132631,-500.0,0.00047397,43]
[327523390,1716154132657,-500.0,0.00047397,43]
[327523391,1716154132686,-500.0,0.00047397,43]